[Event "87th Spanish Championship 2022"]
[Site "Linares"]
[Date "2022.08.13"]
[Round "4.31"]
[White "Domingo Nunez, Alejandro"]
[Black "Rey Martinez, Jaime"]
[Result "1-0"]
[ECO "B40"]
[WhiteElo "2335"]
[BlackElo "2117"]
[Annotator "TA"]
[PlyCount "83"]
[EventDate "2022.08.11"]
[EventType "swiss"]
[EventCountry "ESP"]
[SourceTitle "playchess.com"]
[Source "ChessBase"]
[SourceQuality "1"]
[TimeControl "5400+30"]

{[%evp 9,83,8,17,19,25,30,41,26,33,8,4,-16,29,0,5,-1,18,20,5,0,13,-10,24,-1,24,-21,32,7,33,21,37,18,68,66,68,49,106,99,120,109,118,102,121,120,168,154,156,130,185,145,208,202,206,137,179,180,190,197,209,118,122,117,264,258,285,299,304,293,330,302,418,414,403,379,527,514]} 1. e4 {[%emt 0:00:20]} c5 {[%emt 0:00:16]} 2. Nf3 {[%emt 0:04:57]} e6 {[%emt 0:00:56]} 3. g3 Nc6 {[%emt 0:00:52]} 4. Bg2 {[%emt 0:00:58]} Nf6 {[%emt 0:00:43]} 5. Qe2 {[%emt 0:00:04]} e5 {[%emt 0:01:01]} 6. O-O {[%emt 0:00:11] B40: Sicilian: 2...e6, Unusual lines.} d6 {[%emt 0:01:29]} 7. c3 {[%emt 0:03:36][%cal Bc2c3,Bc3d4,Bd4d5][%mdl 32]} Bg4 {[%emt 0:03:04]} 8. Na3 {[%emt 0:01:37] White is slightly better.} Be7 {[%emt 0:07:11]} 9. Nc2 {[%emt 0:00:30]} (9. h3 $5 {[%cal Rh3g4]} Be6 10. b3 $11) 9... O-O {[%emt 0:00:37]} 10. h3 {[%emt 0:02:23]} Bh5 {[%emt 0:00:30] [#]} 11. d4 $146 ({Predecessor:} 11. d3 Ne8 12. Ne3 Nc7 13. Qc2 d5 14. exd5 Nxd5 15. Nxd5 Qxd5 16. Nd4 Nxd4 17. cxd4 Qxd4 18. Bxb7 {½-½ (34) Letelier Garcia,F (2000)-Duarte Mermow,M (2364) Santiago de Chile 2009}) 11... cxd4 {[%emt 0:18:29]} 12. cxd4 {[%emt 0:03:57]} Rc8 {[%emt 0:00:17]} 13. d5 {[%emt 0:07:01]} Nb8 {[%emt 0:02:52][%cal Of6e4]} ({Much less strong is} 13... Nd4 14. Ncxd4 exd4 15. g4 $16) 14. Na3 {[%emt 0:00:30]} Na6 {[%emt 0:00:30]} 15. Qe3 {[%emt 0:10:24]} (15. g4 $5 {[%cal Rg4h5]} Bg6 16. Ne1 $11) 15... Qd7 16. Nd2 {[%emt 0:07:53]} Bd8 {[%emt 0:12:46]} 17. g4 {[%emt 0:09:19]} Bb6 {[%emt 0:00:53]} (17... Bg6 $1 $11) 18. Qe2 $1 $14 {[%emt 0:00:14]} Bg6 {[%emt 0:00:24]} 19. Ndc4 {[%emt 0:02:49]} Bd8 {[%emt 0:01:36]} 20. f3 {[%emt 0:03:19]} Ne8 ({Black should try} 20... Nc5 $11) 21. Be3 {[%emt 0:00:54]} b5 {[%emt 0:07:28]} 22. Nd2 {[%emt 0:00:30]} Rb8 {[%emt 0:02:36]} (22... Nec7 $14) 23. Rfc1 $16 {[%emt 0:05:30]} Bb6 {[%emt 0:00:02]} 24. Bxb6 {[%emt 0:00:30]} Rxb6 {[%emt 0:00:30]} 25. Nb3 {[%emt 0:00:05]} Nec7 {[%emt 0:03:58][%cal Of7f5]} 26. Qd2 {[%emt 0:06:30]} Rfb8 {[%emt 0:03:45]} (26... f6 $16 {is a better defense.} 27. Nc2 Nc5) 27. Na5 $18 {[%emt 0:01:34]} f6 {[%emt 0:01:30]} 28. Nc6 {[%emt 0:03:16]} R8b7 {[%emt 0:04:17]} (28... Ra8 $16 {might work better.} 29. b4 Be8) 29. Qe3 {[%emt 0:01:02]} Nc5 {[%emt 0:00:06]} (29... Be8 $16 30. Rc2 Bg6) 30. b4 {[%emt 0:03:34]} Na4 31. Qb3 {[%emt 0:00:53]} a6 {[%emt 0:01:47]} 32. Rc2 {[%emt 0:05:37]} Na8 {[%emt 0:04:19]} 33. Rac1 {[%emt 0:02:20]} Be8 {[%emt 0:00:09] [#]} 34. Na5 {[%emt 0:00:30]} ({White should play} 34. Nc4 $1 $18 {[%mdl 512]}) 34... Rb8 $16 {[%emt 0:00:30]} 35. Nb1 $36 {[%cal Ba3b1,Bb1d2,Bd2b3,Bb3a5,Ba5c6][%mdl 2080] White has strong initiative. White is more active.} R6b7 {Loses the game.} 36. Nxb7 $18 {[%emt 0:01:46]} Qxb7 {[%emt 0:01:29]} 37. Qe3 {[%emt 0:00:32]} N4b6 {[%emt 0:00:59]} 38. Nd2 {[%emt 0:00:12] Inhibits Nc4.} Nc8 {[%emt 0:00:28]} 39. Nb3 {[%emt 0:00:30]} Ne7 {[%emt 0:00:30]} 40. Na5 {[%emt 0:00:29]} Qd7 {[%emt 0:00:01]} 41. Nc6 {[%emt 0:01:13]} Rb7 {[%emt 0:00:00]} 42. Qa3 {[%emt 0:00:59] Weighted Error Value: White=0.12 (very precise) /Black=0.29 (precise)} 1-0

[Event "87th Spanish Championship 2022"]
[Site "Linares"]
[Date "2022.08.13"]
[Round "4.32"]
[White "Alvarez Fernandez, Enrique"]
[Black "Donate Moreno, Silvia"]
[Result "1-0"]
[ECO "D38"]
[WhiteElo "2329"]
[BlackElo "1962"]
[Annotator "TA"]
[PlyCount "111"]
[EventDate "2022.08.11"]
[EventType "swiss"]
[EventCountry "ESP"]
[SourceTitle "playchess.com"]
[Source "ChessBase"]
[SourceQuality "1"]
[TimeControl "5400+30"]

{[%evp 18,111,11,2,14,11,29,10,18,4,12,-41,-42,-47,-19,-14,0,-29,-27,-70,-35,-37,-36,-39,-30,-36,-26,-27,-25,-34,-31,-60,-56,-71,-43,-30,-33,-34,-42,-40,0,-33,0,-31,0,0,0,0,0,-31,0,0,0,-36,-38,-38,0,-19,2,-54,0,0,2,-16,0,0,0,0,0,0,0,0,0,0,225,220,222,221,247,221,214,195,219,212,318,225,533,533,677,554,739,722,1056,1013,29997,29998]} 1. d4 {[%emt 0:01:10]} Nf6 {[%emt 0:00:09]} 2. Nf3 {[%emt 0:00:33]} d5 {[%emt 0:00:10]} 3. c4 {[%emt 0:00:32]} e6 {[%emt 0:00:37]} 4. Nc3 {[%emt 0:00:16]} Bb4 {[%emt 0:00:19]} 5. e3 {[%emt 0:02:06]} O-O {[%emt 0:00:42]} 6. Bd3 {[%emt 0:00:28]} dxc4 {[%emt 0:01:24]} 7. Bxc4 {[%emt 0:00:07]} b6 {[%emt 0:01:27]} 8. O-O {[%emt 0:01:14]} Bb7 {[%emt 0:00:50]} 9. a3 {[%emt 0:01:46]} Bxc3 {[%emt 0:00:42]} 10. bxc3 {[%emt 0:00:03]} c5 {[%emt 0:00:11] E52: Nimzo-Indian: Rubinstein: 4...0-0 5 Nf3 d5 6 Bd3 b6.} 11. Bb2 {[%emt 0:08:31]} Qc7 {[%emt 0:03:53]} 12. Bd3 {[%emt 0:02:14]} c4 {[%emt 0:03:08] [#] The position is equal.} 13. Be2 $146 {[%emt 0:02:26]} ({Predecessor:} 13. Bc2 Nbd7 14. Re1 Ne4 15. a4 f5 16. Nd2 Nxd2 17. Qxd2 Be4 18. f3 Bxc2 19. Qxc2 {½-½ (45) Hildebrand,G (2324)-Willow,M (2261) ICCF email 2016}) 13... Nbd7 {[%emt 0:01:20]} 14. Qa4 {[%emt 0:06:26]} (14. a4 $11) 14... b5 $15 {[%emt 0:03:01]} 15. Qc2 {[%emt 0:03:13]} ({Much weaker is} 15. Qxb5 Bxf3 16. gxf3 (16. Bxf3 $2 Rab8 $19) 16... Rab8 17. Qxc4 Qxc4 18. Bxc4 Rxb2 $17) 15... e5 {[%emt 0:03:48]} (15... Be4 $5 {[%cal Re4c2]} 16. Qc1 a6 $11) 16. a4 {[%emt 0:05:05]} a6 {[%emt 0:00:53]} 17. Rfe1 {[%emt 0:05:59]} Rfe8 {[%emt 0:05:08]} 18. Nd2 {[%emt 0:04:38]} Rac8 {[%emt 0:08:10]} 19. axb5 {[%emt 0:03:04]} axb5 {[%emt 0:00:14]} 20. Ba3 {[%emt 0:01:38]} Qc6 {[%emt 0:03:45][%csl Gb7][%cal Rc6g2] [#]} 21. Bf3 {[%emt 0:06:25]} e4 {[%emt 0:00:17]} 22. Be2 {[%emt 0:00:05]} Qe6 {[%emt 0:02:38]} 23. Reb1 {[%emt 0:08:24]} Bc6 {[%emt 0:02:31]} 24. Bb4 {[%emt 0:04:09]} Ra8 {[%emt 0:01:11]} 25. Qb2 {[%emt 0:02:03]} h5 {[%emt 0:02:34]} 26. Rxa8 {[%emt 0:01:12]} Rxa8 {[%emt 0:00:12]} 27. Ra1 {[%emt 0:00:16]} Rxa1+ {[%emt 0:01:57]} 28. Qxa1 {[%emt 0:00:03]} Nb6 {[%emt 0:04:14]} 29. Qa5 {[%emt 0:02:20]} (29. Ba5 $5 {[%cal Ra5b6]} Nbd5 30. Nb1 $11) 29... Bd7 {[%emt 0:03:36]} 30. Bd1 {[%emt 0:02:08]} h4 {[%emt 0:06:02]} (30... Nbd5 {seems wilder.} 31. Ba3 h4 32. Nb1 Qf5) 31. h3 {[%emt 0:01:00]} Nfd5 {[%emt 0:03:19]} 32. Bc5 {[%emt 0:05:28]} f5 {[%emt 0:00:49]} 33. Nb1 {[%emt 0:01:23]} (33. Bxb6 $5 Nxb6 34. f3 $11) 33... Qg6 {[%emt 0:03:48]} 34. Bxb6 {[%emt 0:03:56]} Nxb6 {[%emt 0:00:17]} 35. Qa7 {[%emt 0:03:11]} Qd6 {[%emt 0:01:58]} 36. Qa5 {[%emt 0:01:23]} Qg6 {[%emt 0:06:48][%cal Of5f4]} 37. Bh5 {[%emt 0:05:43]} Qf6 {[%emt 0:02:57]} ({But not} 37... Qxh5 38. Qxb6 Qe8 39. Na3 $16) 38. Qb4 {[%emt 0:01:55]} ({White should try} 38. Na3 $11) 38... Qf8 {[%emt 0:03:02]} (38... Nd5 $15 39. Qc5 Qe6) 39. Qa5 $1 $11 {[%emt 0:00:32]} Qf6 {[%emt 0:00:15]} 40. Nd2 {[%emt 0:00:32]} Na4 {[%emt 0:01:31]} 41. Bd1 {[%emt 0:03:22][%cal Od2c4]} Nb2 {[%emt 0:01:04]} 42. Be2 {[%emt 0:00:19]} Nd3 {[%emt 0:01:17]} 43. Qc7 {[%emt 0:00:38]} Bc6 {[%emt 0:02:40]} 44. Nb1 {[%emt 0:01:00]} f4 {[%emt 0:03:04]} 45. Bxd3 {[%emt 0:02:00]} fxe3 $2 {[%emt 0:01:47] [#]} (45... cxd3 $11 {and Black has nothing to worry.} 46. exf4 Qe6 47. Qd8+ Kf7 48. Qc7+ (48. Qxh4 e3 $17) 48... Kg8 49. Qb8+ Kh7) 46. Bxc4+ $1 $18 {[%emt 0:00:35][%mdl 512]} bxc4 {[%emt 0:00:26]} 47. fxe3 $11 {[%emt 0:00:08][%mdl 4096] Endgame Black must now prevent Nd2. KQB-KQN} Qh6 {[%emt 0:02:42]} 48. Kf2 {[%emt 0:00:49] Nd2 is the strong threat.} Qf6+ {[%emt 0:00:48]} 49. Qf4 {[%emt 0:01:20] aiming for Qxf6.} Qe7 {[%emt 0:00:33]} 50. Nd2 {[%emt 0:00:31]} Bd5 {[%emt 0:01:07]} (50... Qa3 $142) 51. Ke2 {[%emt 0:00:42]} g5 $2 {[%emt 0:07:26]} (51... g6 {is more resistant.} 52. Nf1 Bf7) 52. Qf5 $18 {[%emt 0:00:17]} Bb7 {[%emt 0:00:31]} 53. Kf2 {[%emt 0:00:17]} Kh8 {[%emt 0:01:36]} 54. Nxc4 {[%emt 0:00:33]} Qc7 {[%emt 0:00:24]} 55. Ne5 {[%emt 0:00:39]} Qxc3 {[%emt 0:00:28]} 56. Qf6+ {[%emt 0:00:05] Weighted Error Value: White=0.16 (very precise) /Black=0.47} 1-0

[Event "87th Spanish Championship 2022"]
[Site "Linares"]
[Date "2022.08.13"]
[Round "4.33"]
[White "Garcia Garcia, Samuel"]
[Black "Lin, Yingrui"]
[Result "1/2-1/2"]
[ECO "B22"]
[WhiteElo "2084"]
[BlackElo "2314"]
[Annotator "TA"]
[PlyCount "131"]
[EventDate "2022.08.11"]
[EventType "swiss"]
[EventCountry "ESP"]
[SourceTitle "playchess.com"]
[Source "ChessBase"]
[SourceQuality "1"]
[TimeControl "5400+30"]

{[%evp 16,131,36,28,39,13,13,23,30,21,46,40,64,60,52,41,54,9,16,22,20,-20,-26,-28,11,16,12,8,25,0,0,0,0,0,0,0,0,-8,0,-3,0,-73,-72,-85,-93,-85,-88,-134,-63,-93,-36,-85,6,4,4,13,7,4,14,2,60,60,101,94,89,73,124,116,118,118,116,110,116,100,116,60,60,60,60,60,60,60,60,60,60,60,60,60,60,60,60,60,60,32,32,32,32,32,32,32,32,17,17,17,17,17,17,17,17,17,17,17,17,17,17,17,17,17]} 1. e4 {[%emt 0:00:04]} c5 {[%emt 0:00:19]} 2. c3 {[%emt 0:00:10]} Nf6 {[%emt 0:00:05]} 3. e5 {[%emt 0:00:12]} Nd5 {[%emt 0:00:02]} 4. Nf3 {[%emt 0:00:08]} Nc6 {[%emt 0:00:05]} 5. Bc4 {[%emt 0:00:08]} Nb6 {[%emt 0:00:04]} 6. Bb3 {[%emt 0:00:11]} c4 {[%emt 0:00:02]} 7. Bc2 {[%emt 0:00:09]} d6 {[%emt 0:00:10]} 8. exd6 {[%emt 0:00:15]} Qxd6 {[%emt 0:00:05]} 9. O-O {[%emt 0:00:10]} Bg4 {[%emt 0:00:06] B22: Sicilian: 2 c3.} 10. h3 {[%emt 0:00:18]} Bh5 {[%emt 0:00:04]} 11. Re1 {[%emt 0:00:17] Inhibits Ne5.} e6 {[%emt 0:00:06][%cal Oc6e5] White has an edge.} 12. b3 {[%emt 0:00:27]} cxb3 {[%emt 0:00:06]} 13. axb3 {[%emt 0:00:05] [#]} Qc7 $146 {[%emt 0:00:30]} ({Predecessor:} 13... Be7 14. d4 O-O 15. Nbd2 Rad8 16. Qe2 Nd5 17. Ne4 Qc7 18. Ng3 Nxc3 19. Qd3 Bg6 20. Qxc3 {0-1 (51) Gumularz,S (2534)-Klekowski,M (2510) Bydgoszcz 2021}) 14. Be4 {[%emt 0:20:38]} Be7 {[%emt 0:06:41]} 15. d4 {[%emt 0:02:04]} O-O {[%emt 0:05:53]} 16. g4 {[%emt 0:05:46]} (16. Qd3 $5 {[%cal Re4h7]}) 16... Bg6 {[%emt 0:00:10]} 17. Bxg6 {[%emt 0:00:23]} hxg6 {[%emt 0:02:07]} 18. Nbd2 {[%emt 0:01:29]} Nd5 {[%emt 0:12:34]} 19. Ne4 {[%emt 0:08:33]} Rad8 {[%emt 0:01:35]} (19... f5 $5 {[%cal Rf5e4]} 20. Neg5 Nxc3 21. Nxe6 Qc8 $11) 20. Bd2 {[%emt 0:04:00]} Nf4 {[%emt 0:04:52]} 21. Bxf4 {[%emt 0:05:11]} Qxf4 {[%emt 0:00:04]} 22. Ng3 {[%emt 0:00:27]} Rd5 {[%emt 0:09:53]} 23. Qe2 {[%emt 0:04:19]} Rfd8 {[%emt 0:04:16]} 24. Qe3 {[%emt 0:04:00]} Qc7 {[%emt 0:01:01][%cal Oe6e5]} 25. Qd3 {[%emt 0:12:45]} R5d7 {[%emt 0:04:12][%cal Oe6e5]} 26. Qc4 {[%emt 0:03:09]} a6 {[%emt 0:02:38]} 27. Kg2 {[%emt 0:05:24]} b5 {[%emt 0:03:10]} 28. Qe2 {[%emt 0:00:46]} (28. Qd3 $11 {remains equal.}) 28... b4 $17 {[%emt 0:06:24]} 29. cxb4 {[%emt 0:04:38]} Nxb4 {[%emt 0:04:55]} 30. Rec1 {[%emt 0:00:30]} Qb6 {[%emt 0:01:49]} 31. Ne4 {[%emt 0:01:06]} ({White should play} 31. Qe4) 31... a5 {[%emt 0:07:51]} (31... Bf6 $17 32. Nxf6+ gxf6) 32. Nc5 $15 {[%emt 0:02:32]} Rd5 {[%emt 0:03:40]} (32... Rc7 $17) 33. Nd3 {[%emt 0:03:16]} (33. Na4 $15 Qb7 34. Qe4) 33... Nc6 {[%emt 0:04:30]} (33... Nxd3 $17 34. Qxd3 Bf6) 34. Nf4 $11 {[%emt 0:02:29]} R5d6 {[%emt 0:01:46]} 35. d5 {[%emt 0:00:21]} Nd4 $132 {[%emt 0:01:17][%mdl 2048] Black puts up resistance} 36. Nxd4 {[%emt 0:00:20]} Qxd4 {[%emt 0:00:01]} 37. Ra4 {[%emt 0:00:11]} Qf6 {[%emt 0:00:40]} (37... Qa7 $11) 38. dxe6 $14 {[%emt 0:02:26]} g5 {[%emt 0:01:44]} 39. exf7+ {[%emt 0:01:08]} Qxf7 {[%emt 0:00:02]} 40. Rc7 {[%emt 0:01:14]} Re8 {[%emt 0:03:05]} (40... R8d7 $142 41. Rxd7 Rxd7) 41. Nh5 $16 {[%emt 0:02:25] Re4 is the strong threat. White is more active.} ({Worse is} 41. Re4 gxf4 42. f3 (42. Rexe7 $2 f3+ 43. Kg3 fxe2 $19) 42... Kf8 $17) 41... Qd5+ {[%emt 0:06:52] [#]} 42. Qe4 $1 {[%emt 0:00:10]} Bf8 {[%emt 0:00:25]} 43. Qxd5+ {[%emt 0:02:04]} Rxd5 {[%emt 0:00:01]} 44. Rac4 {[%emt 0:00:33]} Rd2 {[%emt 0:01:15]} 45. Rc2 {[%emt 0:00:40]} ({White should try} 45. Ng3 $16) 45... Rxc2 $14 46. Rxc2 {[%emt 0:00:01][%mdl 4096] Endgame KRB-KRN} Rb8 {[%emt 0:02:58]} 47. Rc3 {[%emt 0:00:24]} Bb4 {[%emt 0:00:47]} 48. Rd3 {[%emt 0:01:51]} Rb7 {[%emt 0:00:49]} 49. Ng3 {[%emt 0:00:22]} Be7 {[%emt 0:00:36]} 50. Rd5 {[%emt 0:00:32]} Rxb3 {[%emt 0:00:10]} 51. Rxa5 {[%emt 0:00:08]} Kf7 {[%emt 0:00:22]} 52. Ne4 {[%emt 0:00:46]} Kg6 {[%emt 0:00:13]} 53. Ra6+ {[%emt 0:00:15]} Bf6 {[%emt 0:01:15]} 54. Nxf6 {[%emt 0:02:07]} gxf6 {[%emt 0:00:02] KR-KR} 55. f3 {[%emt 0:00:18]} Rb2+ {[%emt 0:00:17]} 56. Kg3 {[%emt 0:00:05]} Rb3 {[%emt 0:00:08]} 57. Ra2 {[%emt 0:00:43]} Rc3 {[%emt 0:00:43]} 58. Rf2 {[%emt 0:00:16]} f5 {[%emt 0:01:05] The position is equal.} 59. gxf5+ {[%emt 0:00:09]} Kxf5 {[%emt 0:00:01]} 60. Ra2 {[%emt 0:00:17]} Rc4 {[%emt 0:00:46]} 61. Ra5+ {[%emt 0:00:15]} Kf6 {[%emt 0:00:08]} 62. Ra8 {[%emt 0:00:42]} Rb4 {[%emt 0:00:20]} 63. Rf8+ {[%emt 0:00:16]} Kg6 {[%emt 0:00:29]} 64. Re8 {[%emt 0:00:19]} Ra4 {[%emt 0:00:25]} 65. Re4 {[%emt 0:00:20]} Ra1 {[%emt 0:00:06]} 66. Rb4 {[%emt 0:00:57] Weighted Error Value: White=0.09 (flawless) /Black=0.11 (very precise)} 1/2-1/2

[Event "87th Spanish Championship 2022"]
[Site "Linares"]
[Date "2022.08.13"]
[Round "4.34"]
[White "Del Prado Rodriguez, Xulio"]
[Black "Montesinos Diaz, Luis"]
[Result "1-0"]
[ECO "D25"]
[WhiteElo "2282"]
[BlackElo "1949"]
[Annotator "TA"]
[PlyCount "77"]
[EventDate "2022.08.11"]
[EventType "swiss"]
[EventCountry "ESP"]
[SourceTitle "playchess.com"]
[Source "ChessBase"]
[SourceQuality "1"]
[TimeControl "5400+30"]

{[%evp 15,76,16,31,24,44,28,21,22,26,31,40,47,38,32,266,275,459,452,460,452,419,413,481,502,595,746,717,760,741,739,761,728,755,761,765,761,1662,1599,1411,0,845,0,1334,740,29989,29990,29990,29991,29991,29992,29992,29993,29996,29995,29995,29996,29996,29997,29997,29998,29998,29999,29999]} 1. d4 {[%emt 0:00:33]} d5 {[%emt 0:00:34]} 2. c4 {[%emt 0:00:17]} dxc4 {[%emt 0:00:59]} 3. Nf3 {[%emt 0:00:15]} Nf6 {[%emt 0:00:23]} 4. e3 {[%emt 0:00:11]} a6 {[%emt 0:00:54]} 5. Bxc4 {[%emt 0:00:48]} e6 {[%emt 0:00:16]} 6. O-O {[%emt 0:00:46]} b5 {[%emt 0:00:27]} 7. Bd3 {[%emt 0:01:15]} Bb7 {[%emt 0:00:27]} 8. a4 {[%emt 0:00:09]} b4 {[%emt 0:00:53]} 9. Nbd2 {[%emt 0:00:09] D26: Queen's Gambit Accepted: 4 e3 e6 5 Bxc5 c5 sidelines.} Nbd7 {[%emt 0:01:04]} 10. Qe2 {[%emt 0:00:14]} c5 {[%emt 0:00:51]} 11. Nc4 $1 {[%emt 0:00:06] The position is equal. 11.Nc4 scores better than 11.e4.} Be7 {[%emt 0:00:47]} 12. e4 {[%emt 0:00:07][%cal Od4d5,Be3e4,Be4e5][%mdl 32] is the legacy move (12.Rd1).} cxd4 {[%emt 0:02:48]} 13. e5 {[%emt 0:00:36]} ({But not} 13. Nxd4 Nc5 14. Bc2 Ncxe4 $15) 13... Nd5 {[%emt 0:01:30]} 14. Nxd4 {[%emt 0:02:47] [#]} Nf8 $146 {[%emt 0:02:56] [#]} (14... Nc5 $14) ({Predecessor:} 14... Nc5 15. Bc2 Nb6 16. Nd6+ Bxd6 17. exd6 O-O 18. Bf4 Nd5 19. Bg3 Qf6 20. Rfd1 Rac8 {½-½ (39) Can,E (2604)-Godena,M (2489) Heraklion 2017}) 15. Bg5 $1 $18 {[%emt 0:12:45][%cal Oc4d6] Threatens to win with Nd6+!} Qb8 {[%emt 0:07:58] Prevents Nd6+.} (15... Nf4 16. Bxf4 Qxd4) 16. Bxe7 {[%emt 0:11:36]} Kxe7 {[%emt 0:00:59]} 17. f4 {[%emt 0:28:57][%cal Bf2f4,Bf4f5][%mdl 32]} Qa7 {[%emt 0:08:08]} 18. Qf2 {[%emt 0:00:08] Strongly threatening f5.} Ng6 {[%emt 0:01:28]} 19. f5 {[%emt 0:06:32]} Ngf4 {[%emt 0:06:47]} 20. Qh4+ {[%emt 0:03:19]} f6 {[%emt 0:02:51]} 21. Rxf4 {[%emt 0:03:03]} Nxf4 {[%emt 0:00:10]} 22. Qxf4 {[%emt 0:06:08] exf6+ would kill now.} ({Weaker is} 22. exf6+ gxf6 23. Qxf4 Rhd8 $17) 22... Rhd8 {[%emt 0:03:05]} 23. Nd6 {[%emt 0:01:51]} fxe5 {[%emt 0:01:22] [#]} 24. Qxe5 $1 {[%emt 0:00:06]} Rxd6 {[%emt 0:00:44]} 25. Qxg7+ {[%emt 0:00:06]} Ke8 {[%emt 0:08:14]} 26. Qg8+ {[%emt 0:00:08]} Ke7 {[%emt 0:01:02]} 27. Qg7+ {[%emt 0:08:21]} Ke8 {[%emt 0:00:16]} 28. Qg8+ {[%emt 0:01:15]} (28. Qh8+ $142 Kd7 29. Qxh7+ Kd8 30. Qh8+ Kc7 31. Qg7+ Kd8 32. Qf6+ Ke8 33. Qh8+ Kd7 34. fxe6+ Rxe6 35. Qg7+ Kd6 36. Kh1 Bxg2+ 37. Qxg2 Qxd4 38. Qxa8 Qd5+ 39. Qxd5+ Kxd5 40. Rd1) 28... Ke7 {[%emt 0:00:05]} 29. Qxh7+ {[%emt 0:02:38]} Kf6 {[%emt 0:06:48]} 30. Qh4+ {[%emt 0:02:10] White mates.} Ke5 {[%emt 0:04:28]} 31. Re1+ {[%emt 0:00:05]} Kd5 {[%emt 0:00:24]} 32. Qe4+ {[%emt 0:00:21]} Kc5 {[%emt 0:00:09]} 33. Qe5+ {[%emt 0:00:06]} Bd5 {[%emt 0:01:15]} 34. Rc1+ {[%emt 0:00:06]} Kb6 {[%emt 0:00:23]} 35. Qxd6+ {[%emt 0:00:06]} Ka5 {[%emt 0:00:08]} 36. Rc5+ {[%emt 0:00:27]} Kxa4 {[%emt 0:00:12]} 37. Bc2+ {[%emt 0:00:58]} b3 {[%emt 0:00:13] [#]} 38. Rc4+ $3 {[%emt 0:00:05][%mdl 512]} Bxc4 {[%emt 0:00:19]} (38... Ka5 39. Qb4#) 39. Qa3# {Black did not feel at home in the position after the opening.  Weighted Error Value: White=0.43/Black=0.63} 1-0

[Event "87th Spanish Championship 2022"]
[Site "Linares"]
[Date "2022.08.13"]
[Round "4.36"]
[White "Ordonez Torres, Maria Del Carmen"]
[Black "Esquivias Quintero, Luis Manuel"]
[Result "0-1"]
[ECO "B67"]
[WhiteElo "2056"]
[BlackElo "2299"]
[Annotator "TA"]
[PlyCount "79"]
[EventDate "2022.08.11"]
[EventType "swiss"]
[EventCountry "ESP"]
[SourceTitle "playchess.com"]
[Source "ChessBase"]
[SourceQuality "1"]
[TimeControl "5400+30"]

{[%evp 18,79,30,31,38,10,16,11,6,-2,-13,-34,-7,-31,-24,-37,-37,-28,75,54,51,43,190,167,179,187,146,166,125,137,177,187,172,83,111,110,114,-304,-302,-292,-286,-661,-677,-667,-665,-642,-640,-620,-599,-598,-579,-793,-717,-29986,-29987,-29992,-29984,-29984,-29985,-29985,-29986,-29983,-29984,-29990]} 1. e4 {[%emt 0:00:01]} c5 {[%emt 0:00:17]} 2. Nf3 {[%emt 0:00:09]} d6 {[%emt 0:00:07]} 3. d4 {[%emt 0:00:09]} cxd4 {[%emt 0:00:03]} 4. Nxd4 {[%emt 0:00:07]} Nf6 {[%emt 0:00:03]} 5. Nc3 {[%emt 0:00:06]} Nc6 {[%emt 0:00:04]} 6. Bg5 {[%emt 0:00:16]} Bd7 {[%emt 0:00:10]} 7. Qd2 {[%emt 0:00:20]} a6 {[%emt 0:00:06]} 8. O-O-O {[%emt 0:00:25]} e6 {[%emt 0:00:09]} 9. f3 {[%emt 0:00:15]} Nxd4 {[%emt 0:03:20]} 10. Qxd4 {[%emt 0:00:35]} b5 {[%emt 0:01:03] B67: Sicilian: Richter-Rauzer: 7...a6 8 0-0-0 Bd7, lines without 9 f4 Be7.} 11. e5 {[%emt 0:02:53]} dxe5 {[%emt 0:00:52]} 12. Qxe5 {[%emt 0:02:32]} Be7 {[%emt 0:04:29] The position is equal.} 13. h4 {[%emt 0:08:37] [#]} Qb8 $146 {[%emt 0:05:24]} ({Predecessor:} 13... Rc8 14. Kb1 Rc5 15. Qe3 Qc7 16. Bxf6 gxf6 17. Ne4 Rc6 18. g4 e5 19. Rh2 Be6 {1-0 (50) Solodovnichenko,Y (2573)-Idani,P (2595) Konya 2019}) 14. Qd4 {[%emt 0:03:14]} Qa7 {[%emt 0:04:35]} 15. Qd2 {[%emt 0:15:42]} Bc6 {[%emt 0:01:45]} 16. Bd3 {[%emt 0:03:25]} O-O {[%emt 0:02:52]} 17. h5 {[%emt 0:02:51]} h6 {[%emt 0:00:45] [#]} (17... Rfd8 $11) 18. Bxh6 $1 $16 {[%emt 0:01:18]} gxh6 {[%emt 0:03:41]} 19. Qxh6 {[%emt 0:00:18] aiming for Rh4.} Rfd8 {[%emt 0:08:18]} (19... Qc5 $2 20. Rh4 Qf5 21. Bxf5 $18) ({Black should play} 19... Rad8 $1 $14) 20. Rh3 $18 {[%emt 0:04:16]} Qf2 {[%emt 0:01:40][%cal Of6e4] Prevents Rg3+.} 21. Rf1 $1 $36 {[%emt 0:05:46][%mdl 2048] White is in control.} (21. Qg5+ Kf8 22. h6 (22. Rg3 $2 Bc5 $19) (22. Qh6+ $2 Ke8 $19) 22... Ne8 $11) 21... Qxg2 {[%emt 0:01:15]} 22. Rhh1 {[%emt 0:00:30]} Bc5 {[%emt 0:06:29] Against Rfg1. Hoping for ...Qg7.} (22... Bxf3 $2 23. Rhg1 Rxd3 24. cxd3 $18) 23. Qxf6 {[%emt 0:01:49] Threatening mate with h6.} Bd4 {[%emt 0:00:10]} 24. Qf4 {[%emt 0:06:33]} ({Don't play} 24. Qh6 $6 Qg7 25. Qf4 Be5 $16) 24... Qg7 {[%emt 0:00:54]} 25. Rh4 {[%emt 0:12:18]} (25. Kb1 $1 $18) 25... Qf6 {[%emt 0:03:55] And now ...Qxf4+ would win.} 26. Qg3+ {[%emt 0:04:09]} Kh8 {[%emt 0:00:52]} 27. Rg4 $2 {[%emt 0:02:22][%mdl 8192]} (27. Kb1 $16 {and life is bright.}) 27... Bxc3 $19 {[%emt 0:15:33]} 28. bxc3 {[%emt 0:00:19] [#]} Rxd3 $1 {[%emt 0:00:12] The board is on fire.} (28... Qxc3 $2 {[#]} 29. Qf4 $1 Qa1+ 30. Kd2 $18) 29. cxd3 $2 {[%emt 0:12:34]} (29. Rg1 Rdd8 30. Kb1) 29... Qxc3+ {[%emt 0:00:08]} 30. Kb1 {[%emt 0:00:33] Rc1 is the strong threat.} Qxd3+ {[%emt 0:02:13]} 31. Kb2 {[%emt 0:00:10] White threatens Qe5+ and mate.} Qe2+ {[%emt 0:00:39]} (31... Qxf1 $2 {is a self mate.} 32. Qe5+ f6 33. Qxf6+ Kh7 34. Qg7#) 32. Ka3 {[%emt 0:01:56]} b4+ {[%emt 0:13:22]} (32... Qxf1 $2 {gets mated.} 33. Qe5+ f6 34. Qxf6+ Kh7 35. Qg7#) 33. Rxb4 {[%emt 0:07:59] Black must now prevent Rg1.} Qxf1 {[%emt 0:01:08]} 34. Qe5+ {[%emt 0:01:24]} Kh7 {[%emt 0:00:28] Strongly threatening ...a5.} 35. Rf4 {[%emt 0:01:30]} Qc1+ {[%emt 0:02:35] Black mates.} 36. Kb4 {[%emt 0:00:10] [#]} Rb8+ $3 {[%emt 0:03:11][%mdl 512]} 37. Qxb8 {[%emt 0:00:49]} Qb2+ {[%emt 0:00:04]} 38. Kc5 {[%emt 0:00:11]} Qxb8 {[%emt 0:00:06]} 39. Rxf7+ {[%emt 0:00:33]} Kg8 40. Kd4 {Weighted Error Value: White=0.72/Black=0.19 (very precise)} 0-1